[Event "*** Titled Tuesday 3|2 Blitz"]
[Site "Chess.com"]
[Date "2015.09.01"]
[Round "7"]
[White "Grootneus"]
[Black "motivated_bishop"]
[Result "1-0"]
[WhiteElo "2018"]
[BlackElo "1992"]
[TimeControl "180+2"]
[EndTime "12:27:37 PDT"]
[Termination "Grootneus won by resignation"]

1. e4 {[%clk 0:03:00.8]} 1... e5 {[%clk 0:03:00.8]} 2. Nf3 {[%clk 0:03:00.8]}
2... Nc6 {[%clk 0:03:02]} 3. Bb5 {[%clk 0:03:02.3]} 3... a6 {[%clk 0:03:02.7]}
4. Ba4 {[%clk 0:03:03.7]} 4... Nf6 {[%clk 0:03:03.2]} 5. d3 {[%clk 0:03:05.4]}
5... d6 {[%clk 0:02:50.2]} 6. c3 {[%clk 0:03:04.7]} 6... g6 {[%clk 0:02:47.3]}
7. O-O {[%clk 0:03:02.7]} 7... b5 {[%clk 0:02:46.1]} 8. Bc2 {[%clk 0:03:01]}
8... Bg7 {[%clk 0:02:47.3]} 9. d4 {[%clk 0:03:02.6]} 9... O-O {[%clk 0:02:47.1]}
10. a4 {[%clk 0:02:59.2]} 10... Bb7 {[%clk 0:02:47.2]} 11. Nbd2 {[%clk
0:02:51.1]} 11... Re8 {[%clk 0:02:37.2]} 12. Re1 {[%clk 0:02:51.3]} 12... Qd7
{[%clk 0:02:31.7]} 13. Nf1 {[%clk 0:02:44.1]} 13... Rad8 {[%clk 0:02:26.5]} 14.
d5 {[%clk 0:02:34.5]} 14... Ne7 {[%clk 0:02:20.6]} 15. axb5 {[%clk 0:02:35.9]}
15... axb5 {[%clk 0:02:21.6]} 16. Qe2 {[%clk 0:02:37.3]} 16... c6 {[%clk
0:02:22.1]} 17. dxc6 {[%clk 0:02:30.3]} 17... Bxc6 {[%clk 0:02:19.5]} 18. Ng3
{[%clk 0:02:27.4]} 18... Ra8 {[%clk 0:02:20.1]} 19. Be3 {[%clk 0:02:28.6]} 19...
Rxa1 {[%clk 0:02:20.8]} 20. Rxa1 {[%clk 0:02:30.5]} 20... Ra8 {[%clk 0:02:21.7]}
21. Rxa8+ {[%clk 0:02:30.1]} 21... Bxa8 {[%clk 0:02:22.8]} 22. Bd3 {[%clk
0:02:30]} 22... Bc6 {[%clk 0:02:23.4]} 23. Qd2 {[%clk 0:02:08.4]} 23... Qb7
{[%clk 0:02:16.3]} 24. Qc2 {[%clk 0:02:03.6]} 24... d5 {[%clk 0:02:10.9]} 25.
Nxe5 {[%clk 0:01:56.1]} 25... dxe4 {[%clk 0:02:08.3]} 26. Nxc6 {[%clk
0:01:56.4]} 26... Qxc6 {[%clk 0:02:01]} 27. Nxe4 {[%clk 0:01:54.8]} 27... Nfd5
{[%clk 0:02:00]} 28. Bg5 {[%clk 0:01:36.8]} 28... f6 {[%clk 0:01:58.9]} 29. Bc1
{[%clk 0:01:31]} 29... f5 {[%clk 0:01:56.1]} 30. Ng5 {[%clk 0:01:25.9]} 30... b4
{[%clk 0:01:56.2]} 31. c4 {[%clk 0:01:18.2]} 31... Nc7 {[%clk 0:01:50.5]} 32. h3
{[%clk 0:01:16.4]} 32... Bd4 {[%clk 0:01:21.6]} 33. Nf3 {[%clk 0:01:08.6]} 33...
Bc5 {[%clk 0:01:18.1]} 34. Qe2 {[%clk 0:00:59.5]} 34... Ne6 {[%clk 0:01:15.7]}
35. Ne5 {[%clk 0:00:57.7]} 35... Qd6 {[%clk 0:01:16.5]} 36. b3 {[%clk
0:00:57.2]} 36... Nd4 {[%clk 0:01:17.3]} 37. Qe1 {[%clk 0:00:38.7]} 37... Nxb3
{[%clk 0:01:14.2]} 38. Bb2 {[%clk 0:00:40]} 38... Nd4 {[%clk 0:01:11.6]} 39. Bb1
{[%clk 0:00:29.5]} 39... b3 {[%clk 0:01:09.1]} 40. Nd3 {[%clk 0:00:27.7]} 40...
Nc2 {[%clk 0:01:03.8]} 41. Qc3 {[%clk 0:00:25.9]} 41... Bd4 {[%clk 0:01:03.1]}
42. Qxb3 {[%clk 0:00:25.1]} 42... Bxb2 {[%clk 0:00:58.3]} 43. c5+ {[%clk
0:00:24.2]} 43... Qd5 {[%clk 0:00:56]} 44. Bxc2 {[%clk 0:00:22]} 44... Bd4
{[%clk 0:00:51.4]} 45. Qxd5+ {[%clk 0:00:17.3]} 45... Nxd5 {[%clk 0:00:52.7]}
46. Bb3 {[%clk 0:00:18.9]} 46... Kf8 {[%clk 0:00:50.1]} 47. Bxd5 {[%clk
0:00:20.2]} 47... h6 {[%clk 0:00:49.3]} 48. Kf1 {[%clk 0:00:21.5]} 48... Ke7
{[%clk 0:00:45.4]} 49. Ke2 {[%clk 0:00:22.6]} 49... g5 {[%clk 0:00:45.5]} 50. f3
{[%clk 0:00:19.7]} 50... f4 {[%clk 0:00:46.1]} 51. Kd2 {[%clk 0:00:19.8]} 51...
Kd7 {[%clk 0:00:46.4]} 52. Kc2 {[%clk 0:00:21.2]} 52... Kc7 {[%clk 0:00:41.5]}
53. Be4 {[%clk 0:00:20.2]} 53... Kd7 {[%clk 0:00:40.1]} 54. Kb3 {[%clk
0:00:21.8]} 54... Kc7 {[%clk 0:00:40.1]} 55. Kc4 {[%clk 0:00:23.4]} 55... Bg7
{[%clk 0:00:37.4]} 56. Kd5 {[%clk 0:00:23.7]} 56... Kd7 {[%clk 0:00:38.8]} 57.
c6+ {[%clk 0:00:24.7]} 57... Kc7 {[%clk 0:00:38.8]} 58. Nc5 {[%clk 0:00:26.4]}
58... Bb2 {[%clk 0:00:38.1]} 59. Ne6+ {[%clk 0:00:28.3]} 59... Kc8 {[%clk
0:00:39.2]} 60. c7 {[%clk 0:00:27.4]} 60... Ba3 {[%clk 0:00:40.2]} 61. Ke5
{[%clk 0:00:27.6]} 61... Bb4 {[%clk 0:00:36.2]} 62. Kf5 {[%clk 0:00:28.6]} 62...
Bd6 {[%clk 0:00:36.3]} 63. Kg6 {[%clk 0:00:29.3]} 63... Bxc7 {[%clk 0:00:37.8]}
64. Nxc7 {[%clk 0:00:31.2]} 64... Kxc7 {[%clk 0:00:39.3]} 65. Kxh6 {[%clk
0:00:32.8]} 1-0

[Event "*** Titled Tuesday 3|2 Blitz"]
[Site "Chess.com"]
[Date "2015.09.01"]
[Round "7"]
[White "Aygehovit1992"]
[Black "xdb"]
[Result "1-0"]
[WhiteElo "2343"]
[BlackElo "2176"]
[TimeControl "180+2"]
[EndTime "12:27:58 PDT"]
[Termination "Aygehovit1992 won by resignation"]

1. e4 {[%clk 0:03:01.9]} 1... e5 {[%clk 0:02:59]} 2. Nf3 {[%clk 0:03:02.7]} 2...
Nf6 {[%clk 0:02:59.9]} 3. d4 {[%clk 0:03:03]} 3... Nxe4 {[%clk 0:03:00.1]} 4.
Bd3 {[%clk 0:03:03.6]} 4... Nc6 {[%clk 0:03:01.2]} 5. d5 {[%clk 0:02:57.7]} 5...
Nc5 {[%clk 0:03:00.3]} 6. dxc6 {[%clk 0:02:57.9]} 6... e4 {[%clk 0:03:00.9]} 7.
Qe2 {[%clk 0:02:54.8]} 7... Qe7 {[%clk 0:02:52.8]} 8. cxd7+ {[%clk 0:02:40.8]}
8... Bxd7 {[%clk 0:02:49.9]} 9. Bxe4 {[%clk 0:02:41.8]} 9... Qxe4 {[%clk
0:02:47.3]} 10. Be3 {[%clk 0:02:41.5]} 10... O-O-O {[%clk 0:02:28.4]} 11. Nc3
{[%clk 0:02:41.1]} 11... Qb4 {[%clk 0:02:00.7]} 12. O-O-O {[%clk 0:02:41.5]}
12... Bd6 {[%clk 0:01:42.3]} 13. Kb1 {[%clk 0:02:29.8]} 13... Rhe8 {[%clk
0:01:41.2]} 14. Nd5 {[%clk 0:02:29.6]} 14... Qb5 {[%clk 0:01:31.3]} 15. Qxb5
{[%clk 0:02:27.6]} 15... Bxb5 {[%clk 0:01:33.2]} 16. Nd4 {[%clk 0:02:19.4]}
16... Bc4 {[%clk 0:01:29]} 17. Nc3 {[%clk 0:02:11.1]} 17... Be5 {[%clk
0:01:08.6]} 18. b3 {[%clk 0:02:11.2]} 18... Ba6 {[%clk 0:01:07.4]} 19. b4 {[%clk
0:02:10]} 19... Ne6 {[%clk 0:00:47.8]} 20. Nxe6 {[%clk 0:01:49.6]} 20... Rxd1+
{[%clk 0:00:44]} 21. Rxd1 {[%clk 0:01:38.8]} 21... Rxe6 {[%clk 0:00:45.9]} 22.
Bd4 {[%clk 0:01:35.9]} 22... Bc4 {[%clk 0:00:42.4]} 23. Bxe5 {[%clk 0:01:35.7]}
23... Rxe5 {[%clk 0:00:43.1]} 24. Rd4 {[%clk 0:01:34.3]} 24... Be6 {[%clk
0:00:42.2]} 25. f4 {[%clk 0:01:35.3]} 25... Re1+ {[%clk 0:00:42.5]} 26. Kb2
{[%clk 0:01:36.4]} 26... f6 {[%clk 0:00:38.1]} 27. a4 {[%clk 0:01:32.1]} 27...
b6 {[%clk 0:00:37.1]} 28. b5 {[%clk 0:01:33.2]} 28... Rg1 {[%clk 0:00:35.1]} 29.
Rd2 {[%clk 0:01:32.8]} 29... h5 {[%clk 0:00:32.4]} 30. g3 {[%clk 0:01:14.2]}
30... Kb7 {[%clk 0:00:31.8]} 31. Re2 {[%clk 0:01:11.4]} 31... Bf5 {[%clk
0:00:31.9]} 32. Nd5 {[%clk 0:01:09]} 32... a6 {[%clk 0:00:22]} 33. Re7 {[%clk
0:01:05.1]} 33... axb5 {[%clk 0:00:22.3]} 34. axb5 {[%clk 0:01:04.5]} 34... Rg2
{[%clk 0:00:19.8]} 35. Rxc7+ {[%clk 0:01:04.8]} 35... Kb8 {[%clk 0:00:21.1]} 36.
Rc6 {[%clk 0:01:06.3]} 36... Rxh2 {[%clk 0:00:21.6]} 37. Rxb6+ {[%clk
0:01:07.3]} 37... Ka7 {[%clk 0:00:21.6]} 38. Ra6+ {[%clk 0:01:08.2]} 38... Kb7
{[%clk 0:00:22.5]} 39. Nb4 {[%clk 0:01:08.7]} 39... Rg2 {[%clk 0:00:21.7]} 40.
Ra3 {[%clk 0:00:59.9]} 40... g5 {[%clk 0:00:21.7]} 41. fxg5 {[%clk 0:00:58.8]}
41... fxg5 {[%clk 0:00:22.9]} 42. Rf3 {[%clk 0:01:00.3]} 42... Be4 {[%clk
0:00:21.1]} 43. Re3 {[%clk 0:01:01.6]} 43... Bf5 {[%clk 0:00:21.8]} 44. Re5
{[%clk 0:00:58.7]} 44... Rf2 {[%clk 0:00:21.5]} 45. Kb3 {[%clk 0:00:58]} 45...
h4 {[%clk 0:00:22.1]} 46. gxh4 {[%clk 0:00:58.6]} 46... gxh4 {[%clk 0:00:23.2]}
47. c4 {[%clk 0:01:00]} 47... h3 {[%clk 0:00:23.4]} 48. Re7+ {[%clk 0:00:57]}
48... Kb6 {[%clk 0:00:19.2]} 49. Nd5+ {[%clk 0:00:58]} 49... Kc5 {[%clk
0:00:20]} 50. Rc7+ {[%clk 0:00:52.4]} 50... Kd6 {[%clk 0:00:18.7]} 51. Rc6+
{[%clk 0:00:53]} 51... Ke5 {[%clk 0:00:16]} 52. Rh6 {[%clk 0:00:53.8]} 52... h2
{[%clk 0:00:16]} 53. b6 {[%clk 0:00:55.2]} 53... Be4 {[%clk 0:00:16]} 54. b7
{[%clk 0:00:55.5]} 54... Rf8 {[%clk 0:00:13.9]} 55. Nb6 {[%clk 0:00:48.8]} 55...
Bxb7 {[%clk 0:00:13.7]} 56. Nd7+ {[%clk 0:00:48.2]} 56... Kd4 {[%clk 0:00:14.7]}
57. Rh4+ {[%clk 0:00:45.7]} 57... Kd3 {[%clk 0:00:14.2]} 58. Nc5+ {[%clk
0:00:43.5]} 58... Ke3 {[%clk 0:00:12.2]} 59. Nxb7 {[%clk 0:00:43]} 59... Rb8
{[%clk 0:00:12.5]} 60. Rxh2 {[%clk 0:00:43.2]} 60... Rxb7+ {[%clk 0:00:13.3]}
61. Kc3 {[%clk 0:00:43.9]} 61... Ke4 {[%clk 0:00:13.7]} 62. Rh5 {[%clk 0:00:45]}
62... Rb8 {[%clk 0:00:11.5]} 63. c5 {[%clk 0:00:45.1]} 63... Rc8 {[%clk
0:00:10]} 64. Kc4 {[%clk 0:00:46.2]} 64... Rg8 {[%clk 0:00:09.2]} 65. c6 {[%clk
0:00:46.9]} 65... Rg1 {[%clk 0:00:09.4]} 66. Kc5 {[%clk 0:00:48.2]} 66... Rc1+
{[%clk 0:00:10.4]} 67. Kd6 {[%clk 0:00:49.6]} 67... Kd4 {[%clk 0:00:11.2]} 68.
c7 {[%clk 0:00:50.6]} 68... Rc2 {[%clk 0:00:09.4]} 69. Kd7 {[%clk 0:00:51.7]}
1-0

[Event "*** Titled Tuesday 3|2 Blitz"]
[Site "Chess.com"]
[Date "2015.09.01"]
[Round "7"]
[White "wonderfultime"]
[Black "AleksandrNevski"]
[Result "1/2-1/2"]
[WhiteElo "2625"]
[BlackElo "2337"]
[TimeControl "180+2"]
[EndTime "12:28:28 PDT"]
[Termination "Game drawn by repetition"]

1. d4 {[%clk 0:03:01.9]} 1... d5 {[%clk 0:02:59.9]} 2. c4 {[%clk 0:03:03]} 2...
e6 {[%clk 0:03:01.3]} 3. Nc3 {[%clk 0:03:02.1]} 3... Be7 {[%clk 0:03:00.9]} 4.
Nf3 {[%clk 0:03:03.6]} 4... Nf6 {[%clk 0:03:01.1]} 5. Bf4 {[%clk 0:03:04.8]}
5... O-O {[%clk 0:03:01.1]} 6. e3 {[%clk 0:03:06.4]} 6... Nbd7 {[%clk
0:02:58.8]} 7. c5 {[%clk 0:03:07.6]} 7... c6 {[%clk 0:02:59]} 8. Bd3 {[%clk
0:03:05.6]} 8... b6 {[%clk 0:02:59.5]} 9. b4 {[%clk 0:03:06.6]} 9... a5 {[%clk
0:03:01]} 10. a3 {[%clk 0:03:07.9]} 10... Ba6 {[%clk 0:03:02.2]} 11. Bxa6 {[%clk
0:03:02.7]} 11... Rxa6 {[%clk 0:03:03.1]} 12. O-O {[%clk 0:02:30.8]} 12... Qa8
{[%clk 0:03:02.6]} 13. b5 {[%clk 0:01:56.1]} 13... Ra7 {[%clk 0:03:02]} 14. cxb6
{[%clk 0:01:55.7]} 14... Nxb6 {[%clk 0:03:01.7]} 15. Ne5 {[%clk 0:01:57.3]}
15... cxb5 {[%clk 0:02:56.9]} 16. Nxb5 {[%clk 0:01:59.2]} 16... Rb7 {[%clk
0:02:56.7]} 17. a4 {[%clk 0:01:59.4]} 17... Rc8 {[%clk 0:02:50.7]} 18. Qb3
{[%clk 0:01:49]} 18... Ne4 {[%clk 0:02:26.4]} 19. Rfc1 {[%clk 0:01:48.3]} 19...
Nd2 {[%clk 0:02:25.5]} 20. Rxc8+ {[%clk 0:01:44.4]} 20... Qxc8 {[%clk
0:02:25.2]} 21. Qd1 {[%clk 0:01:45.6]} 21... Ndc4 {[%clk 0:02:23.2]} 22. Rc1
{[%clk 0:01:44.5]} 22... Qe8 {[%clk 0:02:13.4]} 23. Nxc4 {[%clk 0:01:39.2]}
23... Nxc4 {[%clk 0:02:09.6]} 24. Qg4 {[%clk 0:01:31.2]} 24... Bf8 {[%clk
0:01:59.7]} 25. h4 {[%clk 0:01:23.7]} 25... Kh8 {[%clk 0:01:52.1]} 26. e4 {[%clk
0:01:17.7]} 26... Qd7 {[%clk 0:01:11.5]} 27. h5 {[%clk 0:01:07.4]} 27... h6
{[%clk 0:01:10.9]} 28. Qf3 {[%clk 0:00:47.9]} 28... Rb6 {[%clk 0:01:07.2]} 29.
Be5 {[%clk 0:00:35.5]} 29... Rc6 {[%clk 0:01:03.7]} 30. Re1 {[%clk 0:00:30.6]}
30... Nb6 {[%clk 0:01:00.2]} 31. Qe3 {[%clk 0:00:20.9]} 31... Kg8 {[%clk
0:00:59.7]} 32. Qb3 {[%clk 0:00:20.5]} 32... dxe4 {[%clk 0:00:57.2]} 33. Rxe4
{[%clk 0:00:22.4]} 33... Qd5 {[%clk 0:00:51.4]} 34. Qe3 {[%clk 0:00:19.5]} 34...
Nc4 {[%clk 0:00:29.9]} 35. Qe2 {[%clk 0:00:18.7]} 35... Nxe5 {[%clk 0:00:27]}
36. dxe5 {[%clk 0:00:20.6]} 36... Rc1+ {[%clk 0:00:26.4]} 37. Kh2 {[%clk
0:00:21.7]} 37... Ra1 {[%clk 0:00:25.7]} 38. Qe3 {[%clk 0:00:14.5]} 38... Qd1
{[%clk 0:00:24.4]} 39. Rd4 {[%clk 0:00:10.8]} 39... Qxh5+ {[%clk 0:00:22.6]} 40.
Kg3 {[%clk 0:00:12.4]} 40... Be7 {[%clk 0:00:22.7]} 41. Qe4 {[%clk 0:00:09.1]}
41... Rh1 {[%clk 0:00:17]} 42. Rd7 {[%clk 0:00:03.7]} 42... Bg5 {[%clk
0:00:16.4]} 43. Qa8+ {[%clk 0:00:03.7]} 43... Kh7 {[%clk 0:00:17.2]} 44. Qe4+
{[%clk 0:00:05.6]} 44... Qg6 {[%clk 0:00:17.7]} 45. Qxg6+ {[%clk 0:00:06.9]}
45... Kxg6 {[%clk 0:00:19.6]} 46. Nd6 {[%clk 0:00:07.8]} 46... Ra1 {[%clk
0:00:15.9]} 47. Nxf7 {[%clk 0:00:05.8]} 47... Rxa4 {[%clk 0:00:16.6]} 48. Nh8+
{[%clk 0:00:05.4]} 48... Kf5 {[%clk 0:00:16.6]} 49. Nf7 {[%clk 0:00:06.2]} 49...
Bf4+ {[%clk 0:00:16.3]} 50. Kf3 {[%clk 0:00:07.1]} 50... Ra3+ {[%clk 0:00:17.2]}
51. Ke2 {[%clk 0:00:08.6]} 51... h5 {[%clk 0:00:14.7]} 52. Nd6+ {[%clk
0:00:07.5]} 52... Kg6 {[%clk 0:00:12.6]} 53. Re7 {[%clk 0:00:08.8]} 53... Bxe5
{[%clk 0:00:12.8]} 54. Rxe6+ {[%clk 0:00:10.3]} 54... Bf6 {[%clk 0:00:14.4]} 55.
Nc4 {[%clk 0:00:11.5]} 55... Ra2+ {[%clk 0:00:14.3]} 56. Kf3 {[%clk 0:00:13]}
56... a4 {[%clk 0:00:15.8]} 57. Ra6 {[%clk 0:00:14.3]} 57... Kh7 {[%clk
0:00:12.5]} 58. Kg3 {[%clk 0:00:08.1]} 58... Be7 {[%clk 0:00:10.9]} 59. Ra7
{[%clk 0:00:09.1]} 59... Bc5 {[%clk 0:00:09.3]} 60. Ra5 {[%clk 0:00:10.4]} 60...
Bxf2+ {[%clk 0:00:10.2]} 61. Kf3 {[%clk 0:00:11.8]} 61... Bd4 {[%clk 0:00:10.2]}
62. Rxh5+ {[%clk 0:00:12.1]} 62... Kg6 {[%clk 0:00:10.2]} 63. Ra5 {[%clk
0:00:14]} 63... Bf6 {[%clk 0:00:10.8]} 64. g4 {[%clk 0:00:14]} 64... Ra1 {[%clk
0:00:10.5]} 65. Kf4 {[%clk 0:00:14.1]} 65... Rf1+ {[%clk 0:00:10.6]} 66. Kg3
{[%clk 0:00:15.5]} 66... Ra1 {[%clk 0:00:09.9]} 67. Kf4 {[%clk 0:00:16.8]} 67...
Rf1+ {[%clk 0:00:10.3]} 68. Kg3 {[%clk 0:00:18.3]} 68... Ra1 {[%clk 0:00:10.3]}
69. Kf4 {[%clk 0:00:19.8]} 69... Rf1+ {[%clk 0:00:10.5]} 1/2-1/2

[Event "*** Titled Tuesday 3|2 Blitz"]
[Site "Chess.com"]
[Date "2015.09.01"]
[Round "7"]
[White "rhungaski"]
[Black "PawelCzarnota"]
[Result "1/2-1/2"]
[WhiteElo "2467"]
[BlackElo "2431"]
[TimeControl "180+2"]
[EndTime "12:29:04 PDT"]
[Termination "Game drawn by agreement"]

1. Nf3 {[%clk 0:02:57]} 1... Nf6 {[%clk 0:03:00.1]} 2. c4 {[%clk 0:02:57.2]}
2... g6 {[%clk 0:03:01.3]} 3. Nc3 {[%clk 0:02:57.3]} 3... Bg7 {[%clk 0:03:03.2]}
4. e4 {[%clk 0:02:58.3]} 4... d6 {[%clk 0:03:05.1]} 5. d4 {[%clk 0:02:59.6]}
5... O-O {[%clk 0:03:06.8]} 6. Be2 {[%clk 0:03:00.6]} 6... Na6 {[%clk 0:03:08]}
7. O-O {[%clk 0:03:01.1]} 7... e5 {[%clk 0:03:09]} 8. Re1 {[%clk 0:02:55.7]}
8... Qe8 {[%clk 0:03:10]} 9. d5 {[%clk 0:02:45.2]} 9... Nc5 {[%clk 0:03:08.3]}
10. Bf1 {[%clk 0:02:41.2]} 10... a5 {[%clk 0:03:08.9]} 11. b3 {[%clk 0:02:17.3]}
11... Nh5 {[%clk 0:03:08.7]} 12. Be3 {[%clk 0:02:03.2]} 12... b6 {[%clk
0:03:08.8]} 13. Qc2 {[%clk 0:01:54.9]} 13... f5 {[%clk 0:03:08.9]} 14. exf5
{[%clk 0:01:21.4]} 14... gxf5 {[%clk 0:03:09.2]} 15. Nh4 {[%clk 0:01:11.7]}
15... Qd8 {[%clk 0:02:53.3]} 16. g3 {[%clk 0:01:11.5]} 16... e4 {[%clk
0:02:40.6]} 17. Rad1 {[%clk 0:01:10.9]} 17... Nd7 {[%clk 0:02:35.6]} 18. Be2
{[%clk 0:00:56.9]} 18... Qe8 {[%clk 0:02:28.6]} 19. f4 {[%clk 0:00:56.6]} 19...
exf3 {[%clk 0:02:25.7]} 20. Bxf3 {[%clk 0:00:55.5]} 20... Ne5 {[%clk 0:02:26.4]}
21. Bd4 {[%clk 0:00:54.3]} 21... f4 {[%clk 0:02:24.1]} 22. g4 {[%clk 0:00:43.7]}
22... Qd8 {[%clk 0:02:24.5]} 23. Bxe5 {[%clk 0:00:34.8]} 23... Qxh4 {[%clk
0:01:55.6]} 24. Bxg7 {[%clk 0:00:33]} 24... Bxg4 {[%clk 0:01:56.3]} 25. Bxg4
{[%clk 0:00:13.5]} 25... Qxg4+ {[%clk 0:01:56.8]} 26. Kh1 {[%clk 0:00:13.4]}
26... Qf3+ {[%clk 0:01:54]} 27. Qg2 {[%clk 0:00:14.9]} 27... Qxg2+ {[%clk
0:01:54.1]} 28. Kxg2 {[%clk 0:00:16.8]} 28... Nxg7 {[%clk 0:01:50.8]} 29. Nb5
{[%clk 0:00:16.8]} 29... Nf5 {[%clk 0:01:50]} 30. Kf3 {[%clk 0:00:15.2]} 30...
Rf7 {[%clk 0:01:45.5]} 31. Rg1+ {[%clk 0:00:14.3]} 31... Kf8 {[%clk 0:01:42.5]}
32. Rde1 {[%clk 0:00:15.4]} 32... Re8 {[%clk 0:01:40.1]} 33. Rg8+ {[%clk
0:00:13.6]} 33... Kxg8 {[%clk 0:01:40.7]} 34. Rxe8+ {[%clk 0:00:15.5]} 34... Kg7
{[%clk 0:01:42.1]} 35. Kxf4 {[%clk 0:00:15.4]} 35... Nd4+ {[%clk 0:01:39.2]} 36.
Ke3 {[%clk 0:00:16.6]} 36... Nxb5 {[%clk 0:01:38.4]} 37. cxb5 {[%clk 0:00:18.5]}
37... Kf6 {[%clk 0:01:37.3]} 38. Kf4 {[%clk 0:00:17.1]} 38... Kg6+ {[%clk
0:01:34.4]} 39. Ke3 {[%clk 0:00:17.4]} 39... Kf5 {[%clk 0:01:35]} 40. Re6 {[%clk
0:00:16.3]} 40... Rg7 {[%clk 0:01:34.5]} 41. Kf2 {[%clk 0:00:15.7]} 41... Kf4
{[%clk 0:01:33.8]} 42. Re8 {[%clk 0:00:14.9]} 42... h5 {[%clk 0:01:31.1]} 43.
Re6 {[%clk 0:00:13.5]} 43... Rg5 {[%clk 0:01:29.2]} 44. Re7 {[%clk 0:00:14.8]}
44... Rxd5 {[%clk 0:01:30.1]} 45. Rf7+ {[%clk 0:00:16]} 45... Ke4 {[%clk
0:01:28.5]} 46. Rxc7 {[%clk 0:00:16.9]} 46... Rxb5 {[%clk 0:01:29.6]} 47. Ke2
{[%clk 0:00:14]} 47... Re5 {[%clk 0:01:26.8]} 48. Rc4+ {[%clk 0:00:13.5]} 48...
Kd5+ {[%clk 0:01:25.8]} 49. Kd3 {[%clk 0:00:14.7]} 49... b5 {[%clk 0:01:24.9]}
50. Rh4 {[%clk 0:00:15.6]} 50... Kc5 {[%clk 0:01:22.6]} 51. a3 {[%clk
0:00:15.8]} 51... Rf5 {[%clk 0:01:19.7]} 52. b4+ {[%clk 0:00:15.9]} 52... axb4
{[%clk 0:01:20.9]} 53. axb4+ {[%clk 0:00:17.8]} 53... Kd5 {[%clk 0:01:21.9]} 54.
Ke3 {[%clk 0:00:19.3]} 54... Rg5 {[%clk 0:01:21]} 55. Kd3 {[%clk 0:00:19.5]}
55... Re5 {[%clk 0:01:17.5]} 56. Rd4+ {[%clk 0:00:20.5]} 56... Ke6 {[%clk
0:01:18.8]} 57. Rh4 {[%clk 0:00:20.9]} 57... Rd5+ {[%clk 0:01:19.2]} 58. Ke3
{[%clk 0:00:20.8]} 58... Kf6 {[%clk 0:01:18.4]} 59. Rf4+ {[%clk 0:00:20.1]}
59... Rf5 {[%clk 0:01:19.4]} 60. Rd4 {[%clk 0:00:20.5]} 60... d5 {[%clk
0:01:18.2]} 61. Rd1 {[%clk 0:00:20.6]} 61... Ke5 {[%clk 0:01:17.7]} 62. Rg1
{[%clk 0:00:18.1]} 62... d4+ {[%clk 0:01:18.3]} 63. Ke2 {[%clk 0:00:19.6]} 63...
Kd5 {[%clk 0:01:17.9]} 64. Rc1 {[%clk 0:00:20]} 64... Ke4 {[%clk 0:01:18.8]} 65.
Rc8 {[%clk 0:00:19.7]} 65... d3+ {[%clk 0:01:18]} 66. Ke1 {[%clk 0:00:21.2]}
66... Kd4 {[%clk 0:01:18]} 67. h4 {[%clk 0:00:18.2]} 67... Rf4 {[%clk
0:01:07.1]} 68. Rc5 {[%clk 0:00:18.5]} 68... Rxh4 {[%clk 0:00:55.7]} 69. Rxb5
{[%clk 0:00:19.1]} 69... Ke3 {[%clk 0:00:48.6]} 70. Re5+ {[%clk 0:00:19.2]}
70... Re4 {[%clk 0:00:49]} 71. Rxh5 {[%clk 0:00:18]} 71... Rg4 {[%clk 0:00:39]}
72. Re5+ {[%clk 0:00:17.8]} 72... Kd4 {[%clk 0:00:39.9]} 73. Re8 {[%clk
0:00:18.2]} 73... Kc3 {[%clk 0:00:37.7]} 74. Rc8+ {[%clk 0:00:18.6]} 74... Kd4
{[%clk 0:00:38.2]} 75. b5 {[%clk 0:00:16.2]} 75... Rg1+ {[%clk 0:00:36.8]} 76.
Kd2 {[%clk 0:00:16.9]} 76... Rg2+ {[%clk 0:00:38.2]} 77. Kd1 {[%clk 0:00:17.9]}
77... Rb2 {[%clk 0:00:38.9]} 78. Rd8+ {[%clk 0:00:17.7]} 78... Kc3 {[%clk
0:00:40.3]} 79. Rc8+ {[%clk 0:00:18.8]} 1/2-1/2

[Event "*** Titled Tuesday 3|2 Blitz"]
[Site "Chess.com"]
[Date "2015.09.01"]
[Round "8"]
[White "joppie2"]
[Black "HansCoolNiemann"]
[Result "0-1"]
[WhiteElo "2358"]
[BlackElo "2113"]
[TimeControl "180+2"]
[EndTime "12:33:20 PDT"]
[Termination "HansCoolNiemann won by resignation"]

1. e4 {[%clk 0:03:01.9]} 1... e5 {[%clk 0:02:58.3]} 2. Nf3 {[%clk 0:03:02.3]}
2... Nc6 {[%clk 0:02:59.3]} 3. Bb5 {[%clk 0:02:50.1]} 3... Nf6 {[%clk
0:02:58.9]} 4. d3 {[%clk 0:02:47.2]} 4... Bc5 {[%clk 0:02:58.6]} 5. O-O {[%clk
0:02:47.8]} 5... d6 {[%clk 0:02:59.7]} 6. Nbd2 {[%clk 0:02:47.3]} 6... O-O
{[%clk 0:02:59.6]} 7. Bxc6 {[%clk 0:02:47.8]} 7... bxc6 {[%clk 0:02:59.9]} 8.
Re1 {[%clk 0:02:49.7]} 8... Ng4 {[%clk 0:02:57.5]} 9. Re2 {[%clk 0:02:50.4]}
9... f5 {[%clk 0:02:57.9]} 10. c3 {[%clk 0:02:46.4]} 10... Bb6 {[%clk
0:02:56.4]} 11. Nc4 {[%clk 0:02:40.3]} 11... Be6 {[%clk 0:02:53.9]} 12. Nxb6
{[%clk 0:02:40.9]} 12... axb6 {[%clk 0:02:55.8]} 13. Ng5 {[%clk 0:02:40.9]}
13... Qd7 {[%clk 0:02:55.8]} 14. Nxe6 {[%clk 0:02:41]} 14... Qxe6 {[%clk
0:02:55.8]} 15. h3 {[%clk 0:02:38.5]} 15... Nf6 {[%clk 0:02:54.6]} 16. b3 {[%clk
0:02:38.2]} 16... f4 {[%clk 0:02:43]} 17. f3 {[%clk 0:02:38.8]} 17... g5 {[%clk
0:02:42.7]} 18. d4 {[%clk 0:02:40.5]} 18... h5 {[%clk 0:02:42.8]} 19. c4 {[%clk
0:02:41.1]} 19... g4 {[%clk 0:02:39.2]} 20. Kh2 {[%clk 0:02:37.1]} 20... Kh7
{[%clk 0:02:37.8]} 21. Bb2 {[%clk 0:02:28.6]} 21... Rg8 {[%clk 0:02:37.3]} 22.
hxg4 {[%clk 0:02:09.7]} 22... hxg4 {[%clk 0:02:35.7]} 23. Qd3 {[%clk 0:02:08.9]}
23... gxf3 {[%clk 0:02:26.1]} 24. Qxf3 {[%clk 0:02:08.3]} 24... Rg3 {[%clk
0:02:24.3]} 25. Qf1 {[%clk 0:01:53.7]} 25... Ng4+ {[%clk 0:02:23.4]} 26. Kg1
{[%clk 0:01:54.1]} 26... Qh6 {[%clk 0:02:24.2]} 0-1